Cogmind - Beta 15 *** ADVENTURER MODE // 2025.09.23 @ 23:40:13 Player: Ilppis Result: Destroyed by Y-45 Defender with Heavy Assault Rifle Performance ------------- Evolutions (1) 500 Regions Visited (3) 600 Robots Destroyed (54) 270 Value Destroyed (1439) 1439 Prototype IDs (4) 80 Alien Tech Used (0) 0 Bonus (279) 279 TOTAL SCORE: 3168 Bonus ------- High Alert Combat Kills 76 Follower Combat Kills 261 Friendly Fire -58 Cogmind --------- Core Integrity 0/400 Matter 300/300 Energy 250/250 System Corruption 2% Temperature Cool (9) Movement Core (200) Ox3 Location -9/Storage Parts ------- > --- POWER (1) -------- (None) > --- PROPULSION (3) --- (None) > --- UTILITY (2) ------ Medium Storage Unit Medium Battery > --- WEAPON (3) ------- (None) > --- INVENTORY (10) --- Aluminum Leg Sensor Array Terrain Scanner Core Shielding Light Armor Plating Improved Medium Laser Datajack Peak State ------------ > --- POWER ------------ Improved Ion Engine > --- PROPULSION ------- Aluminum Leg Aluminum Leg Improved Aluminum Leg > --- UTILITY ---------- Medium Storage Unit Light Armor Plating > --- WEAPON ----------- Improved EM Shotgun Improved EM Shotgun Small Laser > --- INVENTORY -------- Medium Battery Terrain Scanner Core Shielding Light Assault Rifle Light Assault Rifle Light Assault Rifle Welding Torch [Rating: 15] Favorites ----------- Power Improved Ion Engine Engine Improved Ion Engine Propulsion Aluminum Leg Leg Aluminum Leg Utility Medium Storage Unit Device Terrain Scanner Storage Medium Storage Unit Protection Light Armor Plating Weapon Light Assault Rifle Energy Gun Improved EM Shotgun Energy Cannon Advanced Beam Cannon Ballistic Gun Light Assault Rifle Launcher Grenade Launcher Special Weapon Welding Torch Build | -11 -10 -9 -9 ------- Run | Yrd Mat Mat Sto Slots Evolved 2 | . . 2 . Power . | . . . . Propulsion 1 | . . 1 . Utility . | . . . . Weapon 1 | . . 1 . Parts Attached 28 | 5 3 10 10 Power 4 | 1 . 2 1 Engine 4 | 1 . 2 1 Core . | . . . . Reactor . | . . . . Propulsion 8 | 2 . 3 3 Treads . | . . . . Leg 8 | 2 . 3 3 Wheel . | . . . . Hover . | . . . . Flight . | . . . . Utility 5 | . 2 3 . Device 1 | . . 1 . Storage 3 | . 2 1 . Processor . | . . . . Hackware . | . . . . Protection 1 | . . 1 . Artifact . | . . . . Weapon 11 | 2 1 2 6 Energy Gun 4 | . . 1 3 Energy Cannon 1 | . . . 1 Ballistic Gun 4 | 2 . 1 1 Ballistic Cannon . | . . . . Launcher 1 | . 1 . . Special Weapon 1 | . . . 1 Impact Weapon . | . . . . Slashing Weapon . | . . . . Piercing Weapon . | . . . . Special Melee Weapon . | . . . . Unidentified Prototypes 4 | . . . 4 Corrupted Parts 1 | . . . 1 System Corruption 2 | . . . 2 Parts Lost 15 | . . 5 10 Power 4 | . . 2 2 Propulsion 5 | . . 2 3 Utility . | . . . . Weapon 6 | . . 1 5 Highest Loss Streak 5 | . . 2 5 To Critical Strikes . | . . . . Average Backups 5 | . 1 3 8 Power . | . . . . Propulsion . | . . . . Utility 2 | . . 1 4 Weapon 1 | . 1 1 1 Tool/Special . | . . . . Unused Backups 4 | . . . 4 Power . | . . . . Propulsion 1 | . . . 1 Utility 2 | . . . 2 Weapon . | . . . . Tool/Special 1 | . . . 1 Average Slot Usage (%) 86 | . 89 91 82 Engine 8 | . 14 6 8 Leg 28 | . 28 30 28 Device 1 | . . 3 . Storage 14 | . 17 17 11 Protection 2 | . . 1 2 Energy Gun 13 | . . 5 23 Energy Cannon 2 | . . . 4 Ballistic Gun 11 | . 19 22 2 Launcher 2 | . 8 5 . Peak Build Rating 15 | 5 7 11 15 Average Rating 10 | 3 6 8 12 On Entrance 5 | . 5 7 11 Naked Turns . | . . . . Heaviest Build 27 | 7 16 23 27 Greatest Support 33 | 20 20 33 33 Greatest Overweight (x) 8 | . . 1 8 Average Overweight (x) . | . . . . Largest Inventory Capacity 10 | 5 8 10 10 Average Capacity 9 | 5 7 8 10 Most Carried 10 | 1 3 5 10 Average Carried 5 | . 1 3 8 Final Capacity 10 | 5 8 10 10 Final Carried 7 | . 3 5 7 Class Distribution -------------------- 30% | Gunner 19% | Scavenger-Gunner 18% | Mutant 15% | Scavenger-Tank 10% | Scavenger-Skirmisher 6% | Scavenger-Mutant Dominant Class ---------------- Mutant | -10/Materials Gunner | -9/Materials Scavenger-Gunner | -9/Storage Resources | -11 -10 -9 -9 ----------- Run | Yrd Mat Mat Sto Matter Collected 692 | 182 122 229 159 Remotely . | . . . . Salvage Created 1817 | . 178 599 1040 Parts 131 | . 16 45 70 Haulers Intercepted . | . . . . Recyclers Shooed . | . . . . Parts Field Recycled . | . . . . Retrieved Matter . | . . . . Parts Self-Destructed . | . . . . Prevented . | . . . . Kills | -11 -10 -9 -9 ------- Run | Yrd Mat Mat Sto Combat Hostiles Destroyed 44 | . 6 14 24 Guns 34 | . 5 14 15 Cannons 4 | . . . 4 AOE 6 | . 1 . 5 Classes Destroyed 8 | . 3 4 1 Worker 5 | . 3 . 2 Builder 2 | . . 1 1 Watcher 3 | . . 2 1 Swarmer 14 | . 3 4 7 Grunt 15 | . 3 4 8 Duelist 1 | . . 1 . Protector 1 | . . . 1 Sentry 13 | . . 5 8 Best Kill Streak 7 | . 3 6 7 Combat Bots Only 5 | . 3 5 5 Max Kills in Single Turn 3 | . 1 2 3 Gunslinging 1 | . . . 1 Exploded 3 | . 1 . 3 Melee . | . . . . Uniques/NPCs Destroyed . | . . . . Combat | -11 -10 -9 -9 -------- Run | Yrd Mat Mat Sto Hostile Shots Fired 248 | . 30 61 157 Missed 70 | . 5 19 46 Hits 178 | . 25 42 111 Melee 5 | . . 2 3 Projectile 173 | . 25 40 108 Critical Strikes 8 | . 2 1 5 Damage Taken 1964 | . 219 389 1356 Core 401 | . . 24 377 Absorbed by Shields . | . . . . Ignored by Resistances 573 | . 69 115 389 Regen/Repaired (Parts) 45 | . . . 45 Core Remaining (%) 100 | 100 100 . . Volleys Fired 130 | . 25 43 62 Largest 3 | . 2 3 3 Hottest 169 | . 50 80 169 Shots Fired 276 | . 36 105 135 Gun 239 | . 31 104 104 Cannon 21 | . . . 21 Launcher 6 | . 5 1 . Special 10 | . . . 10 Kinetic 122 | . 31 86 5 Thermal 101 | . . 18 83 Explosive 6 | . 5 1 . Electromagnetic 47 | . . . 47 Robot Hit Streak 39 | . 14 39 23 Robot Miss Streak 4 | . 1 3 4 Penetration Max . | . . . . Secondary Targets 7 | . . 1 6 Max Gunslinging Chain 1 | . . 1 1 Shots Hit Robots 223 | . 31 83 109 Core Hits 106 | . 18 37 51 Critical Kills 1 | . . 1 . Critical Parts Destroyed 1 | . . 1 . Critical Strikes 3 | . . 2 1 Burn 1 | . . . 1 Destroy 2 | . . 2 . Melee Attacks . | . . . . Impact . | . . . . Slashing . | . . . . Piercing . | . . . . Sneak Attacks . | . . . . Combat Hostiles . | . . . . Follow-up Attacks . | . . . . Damage Inflicted 3366 | . 565 733 2068 Guns 2178 | . 210 642 1326 Cannons 288 | . . . 288 Explosions 829 | . 355 71 403 Melee . | . . . . Ramming 49 | . . 20 29 Kinetic 740 | . 210 465 65 Thermal 1425 | . . 177 1248 Explosive 426 | . 355 71 . Electromagnetic 726 | . . . 726 Impact . | . . . . Slashing . | . . . . Piercing . | . . . . Highest Corruption 2 | . . . 2 Average Corruption 2 | . . . 2 Corruption Purged . | . . . . Corruption Blocked . | . . . . Effects 8 | . . . 8 Message Errors 2 | . . . 2 Matter Fused 1 | . . . 1 Heat Flow Errors 2 | . . . 2 Parts Rejected 1 | . . . 1 Data Loss (minor) 1 | . . . 1 Alerts 1 | . . . 1 Overload Shots . | . . . . Overflow Damage 8 | . . . 8 Projectiles . | . . . . Explosions 8 | . . . 8 Melee . | . . . . Knockbacks . | . . . . Impact . | . . . . Kinetic . | . . . . Secondary . | . . . . Self-Inflicted Damage 49 | . . . 49 Shots 2 | . . . 2 Rammed 3 | . . . 3 Targets Rammed 16 | . . 3 13 Kicked 13 | . . 3 10 Crushed . | . . . . Highest Temperature 694 | . 51 97 694 Average Temperature 160 | . 25 33 202 Received Heat Transfer 846 | . 159 105 582 Effects 18 | . . . 18 Shutdowns 4 | . . . 4 Energy Bleed 3 | . . . 3 Interference 5 | . . . 5 Matter Decay 1 | . . . 1 Short Circuit 2 | . . . 2 Damage (minor) 2 | . . . 2 Damage (major) 1 | . . . 1 Siege Activations . | . . . . Martial Activations . | . . . . Shielding Activations . | . . . . Robots Disrupted . | . . . . Combat Hostiles . | . . . . Robots Corrupted . | . . . . Combat Hostiles . | . . . . Parts Fried . | . . . . Impact Corruptions . | . . . . Robots Melted . | . . . . Combat Hostiles . | . . . . Parts Melted 5 | . . . 5 Heat Transferred 2915 | . . 400 2515 Parts Sabotaged . | . . . . Parts Stolen . | . . . . Parts Stripped . | . . . . Power Chain Reactions 4 | . . . 4 Alert | -11 -10 -9 -9 ------- Run | Yrd Mat Mat Sto Maximum Alert Level 2 | . . . 2 Low Security (%) 55 | 100 100 100 10 Level 1 24 | . . . 48 Level 2 20 | . . . 40 Level 3 . | . . . . Level 4 . | . . . . Level 5 . | . . . . High Security . | . . . . Max Security . | . . . . Peak Influence 522 | . 121 116 522 Initial 32 | . . 32 2 Average 197 | . 69 57 340 Influence Increases 1565 | . 181 431 953 Destroy 0b10 Robot/C 1040 | . 120 280 640 Destroy 0b10 Robot/NC 65 | . 15 15 35 Destroy Leader 276 | . 20 84 172 Allied During Kill 15 | . . . 15 Successful Hack 14 | . . . 14 Disable Machine 27 | . . . 27 Destroy Structure 53 | . 26 7 20 Lose Combat Pursuer 75 | . . 45 30 Influence Decreases 1172 | . 90 515 567 Entered New Map 64 | . . 59 5 Time Decay 822 | . 90 310 422 Lost Part 150 | . . 50 100 Lost Ally 40 | . . . 40 Purge Threat 96 | . . 96 . Squads Dispatched 6 | . . 1 5 Investigation 1 | . . . 1 Extermination . | . . . . Reinforcement 3 | . . 1 2 Assault 2 | . . . 2 Garrison . | . . . . Intercept . | . . . . Searches Triggered . | . . . . Construction Impeded . | . . . . Haulers Reinforced . | . . . . Active Scanning Responses . | . . . . Cargo Convoy Interrupts . | . . . . Stealth | -11 -10 -9 -9 --------- Run | Yrd Mat Mat Sto Distress Signals 1 | . . 1 . Communications Jammed . | . . . . Distress Signals . | . . . . Times Spotted 66 | . 7 20 39 Peak Tracking Total 9 | . 3 4 9 Tactical Retreats 4 | . . 2 2 Traps | -11 -10 -9 -9 ------- Run | Yrd Mat Mat Sto Traps Triggered 2 | . . . 2 Indirectly . | . . . . Trap Hack Attempts . | . . . . Triggered . | . . . . Disarmed . | . . . . Reprogrammed . | . . . . Reused . | . . . . Traps Extracted . | . . . . Installed . | . . . . Triggered . | . . . . Machines | -11 -10 -9 -9 ---------- Run | Yrd Mat Mat Sto Machines Disabled 3 | . . . 3 Max in Single Turn 1 | . . . 1 Machines Repaired . | . . . . Machines Dismantled . | . . . . Machines Sabotaged . | . . . . Overloaded Fab Kills . | . . . . Hacking | -11 -10 -9 -9 --------- Run | Yrd Mat Mat Sto Machines Accessed 9 | . . 2 7 Terminals 7 | . . 1 6 Fabricators . | . . . . Repair Stations 1 | . . . 1 Recycling Units . | . . . . Scanalyzers 1 | . . 1 . Garrison Access . | . . . . Total Hacks 21 | . . 5 16 Successful 16 | . . 2 14 Failed 5 | . . 3 2 Catastrophic . | . . . . Database Lockouts . | . . . . Manual 3 | . . . 3 Terminals 17 | . . 3 14 Fabricators . | . . . . Repair Stations 2 | . . . 2 Recycling Units . | . . . . Scanalyzers 2 | . . 2 . Garrison Access . | . . . . Terminal Hacks 14 | . . 2 12 Record 6 | . . 1 5 Part Schematic 1 | . . . 1 Open Door 2 | . . . 2 Alert Level 1 | . . . 1 Unreport Threat 1 | . . 1 . Locate Traps 1 | . . . 1 Surveillance Status 1 | . . . 1 Zone Layout 1 | . . . 1 Fabricator Hacks . | . . . . Repair Station Hacks 2 | . . . 2 Scan Component 1 | . . . 1 Repair 1 | . . . 1 Recycling Unit Hacks . | . . . . Scanalyzer . | . . . . Garrison Access Hacks . | . . . . Unauthorized Hacks . | . . . . Terminals . | . . . . Fabricators . | . . . . Repair Stations . | . . . . Recycling Units . | . . . . Scanalyzers . | . . . . Garrison Access . | . . . . Data Cores Recovered . | . . . . Used . | . . . . Hacking Detections 7 | . . 2 5 Full Trace Events 1 | . . . 1 Feedback Events . | . . . . Feedback Blocked . | . . . . Robot Schematics Acquired . | . . . . Robots Built . | . . . . Authchips . | . . . . Time . | . . . . Total Robot Build Rating . | . . . . Part Schematics Acquired 1 | . . . 1 Parts Built . | . . . . Authchips . | . . . . Time . | . . . . Total Part Build Rating . | . . . . Parts Repaired 1 | . . . 1 Time 51 | . . . 51 Parts Recycled . | . . . . Recycled Matter . | . . . . Retrieved Matter . | . . . . Retrieved Components . | . . . . Parts Scanalyzed . | . . . . Part Schematics Acquired . | . . . . Parts Damaged . | . . . . Bothacking | -11 -10 -9 -9 ------------ Run | Yrd Mat Mat Sto Used RIF Installer . | . . . . Robots Hacked . | . . . . Non-combat . | . . . . Combat . | . . . . Robot Hacks Applied . | . . . . Relay Couplers Released . | . . . . Fabnet Peak Effective % . | . . . . Robots Rewired . | . . . . Allies Hacked . | . . . . Hacks Repelled . | . . . . Allies | -11 -10 -9 -9 -------- Run | Yrd Mat Mat Sto Total Allies 2 | . . . 2 Largest Group 2 | . . . 2 Highest-Rated Group 62 | . . . 62 Highest-Rated Ally 31 | . . . 31 Total Orders . | . . . . Ally Attacks 35 | . . . 35 Total Damage 629 | . . . 629 Kills 11 | . . . 11 Allies Corrupted . | . . . . Allies Melted . | . . . . Intel | -11 -10 -9 -9 ------- Run | Yrd Mat Mat Sto Active Infowar (turns) 190 | . . 190 . Terrain 190 | . . 190 . Robot Analysis Total . | . . . . Derelict Logs Recovered . | . . . . Drone Launches . | . . . . Drone Recoveries . | . . . . Exploration | -11 -10 -9 -9 ------------- Run | Yrd Mat Mat Sto Turns Passed 1831 | 49 228 648 906 Spaces Moved 1010 | 40 138 408 424 Core 14 | 11 . . 3 Treads . | . . . . Legs 996 | 29 138 408 421 Wheels . | . . . . Hover . | . . . . Flight . | . . . . Fastest Speed 50 | 50 120 120 120 Average Speed 127 | 100 120 122 137 Slowest Speed 450 | 120 120 190 450 Overloaded Moves . | . . . . Propulsion Burnouts . | . . . . Robots Hopped . | . . . . Potential Cave-ins 1 | . 1 . . Cave-ins Triggered . | . . . . Exploration Rate (%) 36 | 3 33 33 76 Regions Visited 3 Branch Regions 1 Pre-discovered Areas . | . . . . Known Exits Taken . | . . . . Unknown Exits Taken 3 | 1 1 1 . Scrap Searched . | . . . . Spaces Dug . | . . . . Terrain Destroyed 50 | . 28 6 16 Melee . | . . . . Projectile . | . . . . AOE 50 | . 28 6 16 Terrain Rammed . | . . . . Walls Destroyed . | . . . . Machines Disabled . | . . . . Actions | -11 -10 -9 -9 --------- Run | Yrd Mat Mat Sto Total 1315 | 46 169 480 620 Wait 105 | 1 1 10 93 Move 1007 | 39 137 407 424 Hop . | . . . . Pick Up 17 | 1 3 5 8 Fast Attach 15 | 4 2 5 4 Attach 7 | 1 . 2 4 Detach 1 | . . . 1 Swap 10 | . 1 4 5 Drop 7 | . . 1 6 Fire 130 | . 25 43 62 Melee . | . . . . Ram 3 | . . . 3 Kick 13 | . . 3 10 Crush . | . . . . Escape Stasis . | . . . . Rewire . | . . . . Trap . | . . . . Miscellaneous . | . . . . Route ------- -11/Scrapyard -10/Materials (discovered 2 exits: *Mat / [*Min]) -9/Materials (discovered 2 exits: [*Min] / *Sto) -9/Storage History --------- Turn | Location | Event 4 | -11/Scrapyard | Discovered new exit (range 15) 50 | -11/Scrapyard | Entered Materials 157 | -10/Materials | Discovered new exit (range 14) 267 | -10/Materials | Discovered new exit (range 9) 278 | -10/Materials | Entered another Materials area 278 | -9/Materials | Evolved 2 slots: Propulsion x1, Weapon x1 607 | -9/Materials | Discovered new exit (range 16) 775 | -9/Materials | Discovered new exit (range 9) 926 | -9/Materials | Entered Storage 941 | -9/Storage | Met a pair of Derelict thieves 1144 | -9/Storage | Repaired Imp. EM Shotgun 1749 | -9/Storage | Core integrity fell below 50% 1824 | -9/Storage | Core integrity fell below 20% 1832 | -9/Storage | Destroyed by Y-45 Defender with Heavy Assault Rifle Last Messages --------------- Rating: 3 Schematic downloaded. 01734_ K-01 Serf collects debris. 01748_ Critical hit (Burn: +37). 01777_ Aluminum Leg destroyed. 01789_ Welding Torch destroyed. 01803_ K-01 Serf collects debris. 01809_ Kicked Y-45 Defender. 01814_ Adv. Beam Cannon destroyed. 01816_ Kicked Y-45 Defender. 01817_ Imp. EM Shotgun destroyed. 01818_ Kicked Y-45 Defender. 01823_ System corrupted: Aluminum Leg rejected. 01823_ Critical hit (Burn: +37). 01824_ Slammed into Y-45 Defender. 01826_ Critical hit (Burn: +37). 01827_ Slammed into Y-45 Defender. 01829_ Imp. Assault Rifle destroyed. 01829_ Slammed into Y-45 Defender. 01829_ Critical hit (Burn: +37). Map ----- +----------------------------------------------------+ | # % #####!% " #?????????#[ [ ]#?????????? | | ## ##??###############?????????########?????????? | | ## ###??????????????????????????????????????????? | | %+ + #??????????????????????????????????????????? | | # # "??????????????????????????????????????????? | | !# #????????????????????????????????????????????? | | ?# #????????????????????????????????????????????? | | ?# #????????????????????????????????????????????? | | ?# #????????????????????????????????????????????? | | ?# #????????????????????????????????????????????? | | ## ##???????????????????????????????????????????? | | # #???????????????????????????????????????????? | | % #???????????????????????????????????????????? | | #########???????????????????????????????????? | | # + !! !#??????????##???????????????????????? | | ###### #?????????# ###############?????????? | | ?????# !!!!#?????#? # ##????????? | | ?????##T######?????# # % """ #????????? | | ??????###??????????# """ """ # """ ##????????? | | ???????????????????# """ """ # """ "#????????? | | ??##???????????????# """ """ #"" """ T#????????? | | ?? ????#??????????# #"Y """ "#????????? | | ?? #??????????? #"" ##????????? | | ??" """ #????????????? # #?????????? | | ?"" """ #?????????######Y#########/#####?????????? | | """ """ #?????????# = %@ #?????????? | | #?????????# Y #?????????? | | !#?????????# ##????????? | | %* !*%#????????#########+######## T#????????? | | ####"##############??#???# # ######????? | | =! ? ???# # ######????? | | !% ? ???# # ##][##????? | | = ? ???# # ##][##????? | | ####+#########+##+##? ???# """ """ + ##] ##????? | | ??# #??????? #? ???# """ """ # ## "##????? | | ??# """#??????? ## #??# """ """ # # T#????? | | ??# !"""#??????? ## #??# # %+= ##????? | | ??#*%"""#?????""" ## #??###### #### !######????? | | ??# [ ""#??????*" ## #??########### ######????? | | ### ""#??????*" ## #??# # #?????????? | | !+% #??????" ?# #??# # #?????????? | | ###[ [#??????? ## #### # #?????????? | | ??# #########/## = ## # #?????????? | | ??# + !=%[!!=!%*### """ """ / #?????????? | | #?# ########/### =!#????"" """ # #?????????? | | #?# #????? #?## ##????"" """ # #?????????? | | #?### ###????T ??# #????? ?# #?????????? | | ????###?????# ### ####??########! ##????????? | | ????????????# ## ########## %= #????????? | | ????????????######?# [ #????????? | +----------------------------------------------------+ Best States ------------- Heat Dissipation 28 Energy Generation 12 Energy Capacity 400 Matter Stores 300 Matter Capacity 300 Sight Range 16 Terrain Scan Range 14 Terrain Scan Density 10 Armor Coverage 150 Resistance: KI 20 Resistance: TH 20 Resistance: EX 20 Resistance: EM 20 Resistance: I 20 Resistance: S 20 Resistance: P 20 Evasion (%) 55 Offensive Hacking 10 Item Schematics ----------------- Assault Cannon | -9/Storage | Hacked Robot Schematics ------------------ None Fabricated ------------ Nothing Repaired ---------- Imp. EM Shotgun | 35% | -9/Storage Alien Tech Used ----------------- None Achievements -------------- None Challenges ------------ None Game ------ Seed ConstructEfficiencyRipteeth Manual? 0 Play Time 00:34:28 Cumulative 39.9 hours Start 2025.09.23 @ 23:04:10 End 2025.09.23 @ 23:40:13 Sessions 4 Manual Loads 0 Difficulty Adventurer Special Mode None Game No. 20 Rogue 2 Adventurer 18 Explorer 0 Win Type - Total 0 Types 0/0/0/0/0/0/0/0/0/0 Lore% 10 Gallery% 20 Achievement% 17 Wizard Run 0 Options --------- Layout 1 ASCII 0 Keyboard 0 Movement Mouse Keybinds 0 Fullscreen 1 Font 18/SmallcapsGlow Map View 50x40 Zoom Use 0% Tactical HUD 1 Map Filters NONE Filters NONE Steam 1 RUN: f1380f04-1e8b-42bb-8278-ed63fa4f9a7e